fUST/lending_fUST_20240504
["ID","MTS","AMOUNT","RATE_DAILY","PERIOD"]
[325382899,1714803033711,-3131.783999,0.00022,2]
[325382900,1714803033721,-3131.783999,0.00022,2]
[325382901,1714803033730,-3131.783999,0.00022,2]
[325382902,1714803033740,-3131.783999,0.00022,2]
[325382903,1714803033749,-961.19173411,0.00022,2]
[325382904,1714803034051,521.12221189,0.00020913,2]
[325382941,1714803038488,-2170.59226489,0.00022,2]
[325382943,1714803038497,-1299.96206137,0.00022,2]
[325382985,1714803046535,-154.70605849,0.00021999,2]
[325382987,1714803046547,-238.134822,0.00022,2]
[325382989,1714803046559,-238.134821,0.00022,2]
[325382990,1714803046571,-6285.571559,0.00022,2]
[325382991,1714803046583,-1037.14222447,0.00022,2]
[325383001,1714803116555,317.39865769,0.00020913,2]
[325383002,1714803175019,718.32745363,9.999e-05,2]
[325383016,1714803712066,780.31365506,0.00019708,2]
[325383017,1714803950818,500.42096548,0.00023,120]
[325383018,1714803991938,1500.0,0.00015,2]
[325383019,1714804027526,210.09660948,0.0001648,2]
[325383020,1714804033920,154.7215013,9.999e-05,2]
[325383021,1714804053305,-1880.02151186,0.00020111,2]
[325383022,1714804053326,-521.12221189,0.00020112,2]
[325383023,1714804053346,-160.9883917,0.00020126,2]
[325383024,1714804053375,-2181.18333425,0.00020458,2]
[325390319,1714804829054,500.0,7.43e-05,2]
[325390320,1714804829408,500.0,0.00015556,2]
[325390321,1714805002059,154.7215013,9.999e-05,2]
[325390322,1714805120971,521.12221189,0.0002,2]
[325390323,1714805133350,17333.3784822,0.00019839,2]
[325390324,1714805142530,1566.70133278,9.999e-05,2]
[325390325,1714805229148,-816.25139438,0.00020912,2]
[325390326,1714805229170,-154.7215013,0.00020913,2]
[325390327,1714805229193,-521.12221189,0.00020913,2]
[325390328,1714805229216,-162.7725956,0.0002179,2]
[325390329,1714805229237,-153.0,0.000218,2]
[325390330,1714805229258,-373.7,0.0002189,3]
[325390331,1714805229279,-340.55207311,0.00021898,2]
[325390332,1714805229300,-1146.79943163,0.00021898,2]
[325390333,1714805229320,-655.62204451,0.00021898,2]
[325390334,1714805229340,-475.53679444,0.00021898,2]
[325390335,1714805229362,-33.1196423,0.00021898,2]
[325390364,1714805433597,-342.767362,0.00020913,2]
[325390385,1714805438242,-178.35484989,0.00020913,2]
[325390386,1714805438251,-154.7215013,0.00020913,2]
[325390387,1714805438260,-816.25139438,0.00020913,2]
[325390388,1714805438270,-413.24225443,0.00021028,2]
[325390431,1714805440239,-206.77170575,0.00021028,2]
[325390433,1714805440249,-735.37543667,0.00021798,2]
[325390435,1714805440258,-921.59754159,0.00021897,2]
[325390437,1714805440267,-921.59754159,0.00021897,2]
[325390439,1714805440277,-921.59754159,0.00021897,2]
[325390441,1714805440286,-921.59754159,0.00021897,2]
[325390443,1714805440295,-921.59754159,0.00021897,2]
[325390445,1714805440304,-921.59754159,0.00021897,2]
[325390447,1714805440314,-921.59754159,0.00021897,2]
[325390449,1714805440324,-921.59754159,0.00021897,2]
[325390451,1714805440333,-921.59754159,0.00021897,2]
[325390453,1714805440343,-921.59754159,0.00021897,2]
[325390455,1714805440352,-921.59754159,0.00021897,2]
[325390457,1714805440362,-921.59754159,0.00021897,2]
[325390459,1714805440372,-921.59754159,0.00021897,2]
[325390461,1714805440381,-921.59754159,0.00021897,2]
[325390463,1714805440391,-921.59754159,0.00021897,2]
[325390465,1714805440400,-921.59754159,0.00021897,2]
[325390467,1714805440410,-921.59754159,0.00021897,2]
[325390469,1714805440420,-921.59754159,0.00021897,2]
[325390471,1714805440430,-921.59754159,0.00021897,2]
[325390473,1714805440439,-921.59754159,0.00021897,2]
[325390475,1714805440449,-921.59754159,0.00021897,2]
[325390477,1714805440458,-921.59754159,0.00021897,2]
[325390479,1714805440468,-921.59754159,0.00021897,2]
[325390481,1714805440477,-921.59754159,0.00021897,2]
[325390483,1714805440488,-921.59754159,0.00021897,2]
[325390485,1714805440498,-921.59754159,0.00021897,2]
[325390487,1714805440507,-921.59754159,0.00021897,2]
[325390489,1714805440516,-921.59754159,0.00021897,2]
[325390491,1714805440526,-921.59754159,0.00021897,2]
[325390493,1714805440535,-921.59754159,0.00021897,2]
[325390495,1714805440545,-921.59754159,0.00021897,2]
[325390497,1714805440554,-921.59754159,0.00021897,2]
[325390499,1714805440564,-921.59754159,0.00021897,2]
[325390501,1714805440574,-921.59754159,0.00021897,2]
[325390503,1714805440582,-921.59754159,0.00021897,2]
[325390505,1714805440591,-921.59754159,0.00021897,2]
[325390506,1714805440601,-921.59754159,0.00021897,2]
[325390508,1714805440611,-921.59754159,0.00021897,2]
[325390510,1714805440621,-921.59754159,0.00021897,2]
[325390512,1714805440631,-921.59754159,0.00021897,2]
[325390514,1714805440640,-921.59754159,0.00021897,2]
[325390516,1714805440650,-921.59754159,0.00021897,2]
[325390518,1714805440659,-921.59754159,0.00021897,2]
[325390520,1714805440669,-921.59754159,0.00021897,2]
[325390522,1714805440679,-921.59754159,0.00021897,2]
[325390524,1714805440688,-921.59754159,0.00021897,2]
[325390526,1714805440697,-921.59754159,0.00021897,2]
[325390528,1714805440707,-921.59754159,0.00021897,2]
[325390530,1714805440716,-921.59754159,0.00021897,2]
[325390532,1714805440726,-921.59754159,0.00021897,2]
[325390534,1714805440735,-921.59754159,0.00021897,2]
[325390536,1714805440745,-921.59754159,0.00021897,2]
[325390538,1714805440754,-921.59754159,0.00021897,2]
[325390540,1714805440763,-921.59754159,0.00021897,2]
[325390542,1714805440772,-921.59754159,0.00021897,2]
[325390544,1714805440782,-921.59754159,0.00021897,2]
[325390546,1714805440791,-921.59754159,0.00021897,2]
[325390548,1714805440801,-921.59754159,0.00021897,2]
[325390550,1714805440810,-921.59754159,0.00021897,2]
[325390552,1714805440819,-921.59754159,0.00021897,2]
[325390554,1714805440829,-921.59754159,0.00021897,2]
[325390556,1714805440838,-921.59754159,0.00021897,2]
[325390558,1714805440848,-921.59754159,0.00021897,2]
[325390560,1714805440858,-1442.37617648,0.00021898,2]
[325390562,1714805440868,-993.12591676,0.00021898,2]
[325390564,1714805440877,-285.09324096,0.00021898,2]
[325390566,1714805440887,-709.89305319,0.00021898,2]
[325390568,1714805440896,-617.95524305,0.00021898,2]
[325390570,1714805440906,-322.11632849,0.00021898,2]
[325390572,1714805440917,-160.487033,0.00021898,2]
[325390574,1714805440928,-160.487033,0.00021898,2]
[325390576,1714805440937,-160.487033,0.00021898,2]
[325390578,1714805440946,-160.487033,0.00021898,2]
[325390580,1714805440955,-2619.722862,0.00021898,2]
[325390590,1714805441096,-2619.722862,0.00021898,2]
[325390591,1714805441106,-2619.722862,0.00021898,2]
[325390592,1714805441116,-2619.722862,0.00021898,2]
[325390593,1714805441125,-2348.930251,0.00021898,2]
[325390594,1714805441134,-2348.930251,0.00021898,2]
[325390595,1714805441143,-657.86576927,0.00021898,2]
[325390596,1714805441152,-939.34960788,0.00021899,2]
[325390597,1714805441161,-405.232073,0.00021899,2]
[325390598,1714805441170,-405.232073,0.00021899,2]
[325390599,1714805441179,-3467.118487,0.00021899,2]
[325390600,1714805441189,-3467.118487,0.00021899,2]
[325390601,1714805441198,-235.515111,0.00021899,2]
[325390602,1714805441207,-214.32134,0.00021899,2]
[325390603,1714805441216,-235.515111,0.00021899,2]
[325390604,1714805441225,-214.32134,0.00021899,2]
[325390605,1714805441234,-6317.11973,0.00021899,2]
[325390606,1714805441245,-946.32877882,0.00021899,2]
[325392312,1714805503504,525.45739291,0.0002,4]
[325392315,1714805557348,446.88199142,9.999e-05,2]
[325392316,1714805569188,2091.06873817,9.999e-05,2]
[325392317,1714805573604,154.7215013,9.999e-05,2]
[325392318,1714805610353,9139.68445779,0.0002,2]
[325392319,1714805708858,33617.98623044,0.0002,2]
[325392320,1714805734528,260.57967193,9.999e-05,2]
[325392321,1714805849271,25384.78980326,0.0002,2]
[325392324,1714806142208,500.0,0.00014015,30]
[325392325,1714806142560,500.0,0.00018024,30]
[325392326,1714806157458,521.49441262,9.999e-05,2]
[325392327,1714806185196,10000.0,0.00019806,2]
[325392328,1714806337199,154.7215013,9.999e-05,2]
[325392329,1714806360822,1079.20558224,9.999e-05,2]
[325392336,1714806428126,-816.25139438,0.00020235,2]
[325392337,1714806428147,-2628.34812708,0.00020236,2]
[325392338,1714806428167,-154.7215013,0.00020236,2]
[325392339,1714806428187,-900.2752581,0.00020237,2]
[325392340,1714806428207,-654.7024078,0.00020239,2]
[325392341,1714806428229,-162.77259559,0.00020251,2]
[325392342,1714806428250,-521.12221189,0.00020377,2]
[325392343,1714806428271,-167.223131,0.00020378,2]
[325392344,1714806428291,-5335.9639,0.000216,4]
[325392345,1714806428313,-643.45350713,0.00021698,2]
[325392346,1714806428334,-1690.63350792,0.00021764,2]
[325392376,1714806632234,-816.25139438,0.00020912,2]
[325392377,1714806632246,-500.15292117,0.00020913,2]
[325392378,1714806632257,-195.3556566,0.00021664,2]
[325392379,1714806632269,-563.02181873,0.00021697,2]
[325392380,1714806632284,-32786.0620857,0.00021764,2]
[325392381,1714806632296,-500.0,0.00021796,2]
[325392382,1714806632443,-500.0,0.00021796,2]
[325392383,1714806632453,-500.0,0.00021796,2]
[325392384,1714806632462,-500.0,0.00021796,2]
[325392385,1714806632473,-500.0,0.00021796,2]
[325392386,1714806632482,-500.0,0.00021796,2]
[325392387,1714806632493,-500.0,0.00021796,2]
[325392388,1714806632503,-500.0,0.00021796,2]
[325392389,1714806632512,-500.0,0.00021796,2]
[325392390,1714806632524,-295.29394151,0.00021798,2]
[325392391,1714806632534,-265.20094619,0.00021798,2]
[325392392,1714806632545,-415.52627928,0.00021798,2]
[325392393,1714806632554,-1879.48668951,0.00021798,2]
[325392394,1714806632564,-248.53685772,0.00021798,2]
[325392395,1714806632573,-211.10180347,0.00021798,2]
[325392396,1714806632583,-592.89562787,0.00021798,2]
[325392407,1714806640460,-500.0,0.00021796,2]
[325392409,1714806640470,-500.0,0.00021796,2]
[325392410,1714806640479,-500.0,0.00021796,2]
[325392411,1714806640489,-500.0,0.00021796,2]
[325392412,1714806640498,-500.0,0.00021796,2]
[325392413,1714806640508,-500.0,0.00021796,2]
[325392414,1714806640517,-500.0,0.00021796,2]
[325392415,1714806640527,-500.0,0.00021796,2]
[325392416,1714806640536,-500.0,0.00021796,2]
[325392417,1714806640545,-500.0,0.00021796,2]
[325392418,1714806640556,-500.0,0.00021796,2]
[325392419,1714806640572,-500.0,0.00021796,2]
[325392420,1714806640582,-299.9,0.00021796,2]
[325392432,1714806643814,1314.01181236,0.0001,2]
[325392436,1714806655546,207.23365433,9.999e-05,2]
[325392437,1714806655574,608.59579607,9.999e-05,2]
[325392438,1714806656861,154.7215013,9.999e-05,2]
[325392439,1714806674997,701.01591029,9.999e-05,2]
[325392440,1714806688100,513.79200491,9.999e-05,2]
[325392441,1714806696084,154.7215013,9.999e-05,2]
[325392442,1714806703289,565.42105856,9.999e-05,2]
[325392443,1714806751243,154.7215013,0.000137,2]
[325392444,1714806873291,500.0,0.00019178,2]
[325392445,1714806873331,500.0,0.00019178,2]
[325392446,1714806873377,500.0,0.00019178,2]
[325392447,1714806873411,500.0,0.00019178,2]
[325392448,1714806873453,500.0,0.00019178,2]
[325392449,1714806873489,500.0,0.00019178,2]
[325392450,1714806873523,500.0,0.00019178,2]
[325392451,1714806873568,500.0,0.00019178,2]
[325392452,1714806873626,500.0,0.00019178,2]
[325392453,1714806873667,500.0,0.00019178,2]
[325392454,1714806873706,500.0,0.00019178,2]
[325392455,1714806873743,500.0,0.00019178,2]
[325392456,1714806873781,500.0,0.00019178,2]
[325392457,1714806873818,500.0,0.00019178,2]
[325392458,1714806873859,500.0,0.00019178,2]
[325392459,1714806873908,500.0,0.00019178,2]
[325392460,1714806873958,500.0,0.00019178,2]
[325392461,1714806873996,500.0,0.00019178,2]
[325392462,1714806874038,500.0,0.00019178,2]
[325392463,1714806874079,500.0,0.00019178,2]
[325392464,1714806874119,469.28813502,0.00019178,2]
[325392465,1714806874156,500.0,0.00019178,2]
[325392466,1714806874189,500.0,0.00019178,2]
[325392467,1714806874229,500.0,0.00019178,2]
[325392468,1714806874270,500.0,0.00019178,2]
[325392469,1714806874310,500.0,0.00019178,2]
[325392470,1714806874343,500.0,0.00019178,2]
[325392471,1714806874382,500.0,0.00019178,2]
[325392472,1714806874414,500.0,0.00019178,2]
[325392473,1714806874513,500.0,0.00019178,2]
[325392474,1714806874568,500.0,0.00019178,2]
[325392475,1714806874627,500.0,0.00019178,2]
[325392476,1714806874671,500.0,0.00019178,2]
[325392477,1714806874741,500.0,0.00019178,2]
[325392478,1714806875845,500.0,0.00019178,2]
[325392479,1714806890397,500.0,0.00019178,2]
[325392480,1714806890468,500.0,0.00019178,2]
[325392481,1714806890502,500.0,0.00019178,2]
[325392482,1714806890694,500.0,0.00019178,2]
[325392483,1714806890728,500.0,0.00019178,2]
[325392484,1714806890765,650.0,0.00019178,2]
[325392485,1714806959642,2151.93155539,9.999e-05,2]
[325392486,1714806976166,200.2171405,9.999e-05,2]
[325392487,1714807166863,155.09301138,0.00019,2]
[325392488,1714807186157,155.32305275,0.0001,2]
[325392489,1714807202088,154.7215013,9.999e-05,2]
[325392490,1714807215110,154.7215013,9.999e-05,2]
[325392491,1714807256701,4852.4860827,0.00019851,2]
[325392492,1714807258162,154.7215013,9.999e-05,2]
[325392493,1714807479784,521.12221189,0.0002,2]
[325392494,1714807484308,816.25139438,0.00019999,2]
[325392495,1714807592983,500.0,0.00019178,2]
[325392496,1714807593162,500.0,0.00019178,2]
[325392497,1714807593520,500.0,0.00019178,2]
[325392498,1714807593554,500.0,0.00019178,2]
[325392499,1714807593597,353.86362168,0.00019178,2]
[325392500,1714807593634,500.0,0.00019178,2]
[325392501,1714807593692,500.0,0.00019178,2]
[325392511,1714807726790,500.15292117,9.999e-05,2]
[325392541,1714807833390,-816.25139438,0.0002053,2]
[325392542,1714807833405,-260.57967193,0.00020531,2]
[325392543,1714807833414,-521.12221189,0.00020532,2]
[325392544,1714807833423,-240.44059115,0.00020533,2]
[325392546,1714807833433,-2268.08232533,0.00020912,2]
[325392548,1714807833442,-568.19014612,0.00020976,2]
[325392550,1714807833454,-51.81055189,0.00020976,2]
[325392552,1714807833463,-204.0119045,0.000212,2]
[325392554,1714807833472,-408.023809,0.000212,2]
[325392556,1714807833481,-153.0,0.000212,2]
[325392558,1714807833490,-267.83200673,0.000212,2]
[325392560,1714807833510,-137.74498157,0.000212,2]
[325392562,1714807833519,-307.9930611,0.000212,2]
[325392564,1714807833529,-306.0,0.000212,2]
[325392566,1714807833539,-153.0,0.000212,2]
[325392567,1714807833548,-408.1230692,0.000212,2]
[325392568,1714807833558,-128.48706707,0.000212,2]
[325392570,1714807833570,-24.51293293,0.000212,2]
[325392572,1714807833580,-153.0,0.000212,2]
[325392573,1714807833589,-204.0119045,0.000212,2]
[325392574,1714807833599,-149.15627726,0.000212,2]
[325392598,1714807840633,-240.44059115,0.00020529,2]
[325392599,1714807840646,-387.56482508,0.000212,2]
[325392600,1714807840664,-86.22665766,0.000212,2]
[325392601,1714807840674,-622.94777,0.00021226,2]
[325392602,1714807840683,-622.94776,0.00021252,2]
[325392603,1714807840694,-544.95853579,0.00021278,2]
[325392647,1714807846499,-77.98923421,0.00021278,2]
[325392648,1714807846508,-960.4,0.00021293,14]
[325392649,1714807846518,-321.65673818,0.00021293,14]
[325392650,1714807859157,241.90223269,0.0002,2]
[325392651,1714807866172,409.52572391,9.999e-05,2]
[325392652,1714807884873,527.23402412,9.999e-05,2]
[325392653,1714807899314,154.7215013,9.999e-05,2]
[325392654,1714807961208,284.15482855,9.999e-05,2]
[325392655,1714807993390,164.21196802,9.999e-05,2]
[325392656,1714808059238,604.2829616,0.000185,2]
[325392657,1714808061812,522.45279288,9.999e-05,2]
[325392658,1714808139508,1679.27061659,0.00015,2]
[325392659,1714808174280,154.7215013,9.999e-05,2]
[325392662,1714808687449,260.57967193,9.999e-05,2]
[325392666,1714808788954,816.25139438,9.999e-05,2]
[325392667,1714808845272,-311.95519915,0.00020864,2]
[325392668,1714808867640,150.0,0.000189,2]
[325392669,1714808914368,154.7215013,9.999e-05,2]
[325392670,1714809002618,-384.38558076,0.0002661,120]
[325392765,1714809038501,-1893.19317664,0.00020856,2]
[325392766,1714809038512,-816.25139438,0.00020857,2]
[325392767,1714809038521,-260.57967193,0.00020857,2]
[325392768,1714809038531,-154.7215013,0.00020858,2]
[325392769,1714809038541,-1096.78756551,0.00021,2]
[325392770,1714809038550,-217.5938419,0.00021015,2]
[325392827,1714809152861,506.9581074,0.000211,6]
[325392828,1714809155592,1197.936,0.00025,19]
[325392829,1714809166273,475.53679444,9.999e-05,2]
[325392830,1714809176275,1146.79943163,0.00015,2]
[325394062,1714809250669,154.7215013,9.999e-05,2]
[325395182,1714809402591,375.252595,0.00019912,2]
[325395183,1714809440825,24900.0,0.00019912,2]
[325395184,1714809448248,-350.0,0.00028637,120]
[325395185,1714809470135,225.89314316,0.000189,2]
[325395186,1714809472136,464.92090517,9.999e-05,2]
[325395187,1714809577477,160.386526,0.00019618,2]
[325395188,1714809643010,372.65151352,0.00019178,2]
[325395189,1714809643041,421.17032156,0.00019178,2]
[325395190,1714809728076,260.57967193,9.999e-05,2]
[325395191,1714809731570,816.25139438,9.999e-05,2]
[325395192,1714809772205,150.59542877,0.000189,2]
[325395193,1714809805515,154.7215013,9.999e-05,2]
[325395194,1714809874589,187.626297,0.00019908,2]
[325395195,1714810040100,-892.3625819,0.00020888,2]
[325395196,1714810040119,-729.97364417,0.00020889,2]
[325395197,1714810073724,150.39695252,0.000189,2]
[325395198,1714810102728,758.19017186,9.999e-05,2]
[325395206,1714810146259,1314.01181236,0.0001,2]
[325395214,1714810212532,880.4,0.00021083,14]
[325395215,1714810229348,1555.99375992,9.999e-05,2]
[325395216,1714810229373,6322.88294679,9.999e-05,2]
[325395217,1714810229411,583.90234602,9.999e-05,2]
[325395218,1714810230597,1148.1,0.00021083,14]
[325395298,1714810238702,-260.57967193,0.00020878,2]
[325395299,1714810238712,-816.25139438,0.00020879,2]
[325395300,1714810238721,-464.92090517,0.0002088,2]
[325395301,1714810238730,-154.7215013,0.00020881,2]
[325395302,1714810238739,-291.75255164,0.000209,2]
[325395303,1714810238749,-232.61785091,0.000209,2]
[325395304,1714810238758,-475.32221455,0.0002091,2]
[325395305,1714810238767,-312.97578303,0.0002091,2]
[325395306,1714810238777,-180.79774293,0.00020913,2]
[325395307,1714810238788,-6189.0415356,0.00020913,2]
[325395308,1714810238799,-5960.76800002,0.00020913,2]
[325395309,1714810238808,-620.0000349,0.00020924,2]
[325395310,1714810238819,-291.75255163,0.00020926,2]
[325395311,1714810238828,-291.75255163,0.00020953,2]
[325395312,1714810238838,-291.75255163,0.00020979,2]
[325395313,1714810238847,-154.90978878,0.00020997,2]
[325395314,1714810238856,-155.43184006,0.00020998,2]
[325395315,1714810238865,-240.0861284,0.00020998,2]
[325395316,1714810238875,-411.44817979,0.00020999,2]
[325395317,1714810238884,-13093.77039516,0.00020999,2]
[325395335,1714810240895,-514.88888678,0.000209,2]
[325395336,1714810240904,-52243.26483977,0.00020999,2]
[325395337,1714810240950,-2456.65691087,0.00020999,2]
[325395338,1714810240962,-10102.77985419,0.00020999,2]
[325395339,1714810240972,-1929.07323494,0.00021,2]
[325395344,1714810243906,1079.20558224,9.999e-05,2]
[325395345,1714810244177,186.45353007,9.999e-05,2]
[325395363,1714810246910,-116.61421924,0.00021,2]
[325395364,1714810261435,1092.31080328,9.999e-05,2]
[325395365,1714810264740,1050.25550353,0.0002,5]
[325395366,1714810278832,488.60277858,0.0002,2]
[325395374,1714810355113,187.626297,0.00019928,2]
[325395375,1714810375090,150.26463501,0.000189,2]
[325395376,1714810376696,1579.16819977,9.999e-05,2]
[325395377,1714810550375,3055.5666264,0.0001985,2]
[325395378,1714810676831,150.0,0.000189,2]
[325395379,1714810809318,807.0,0.00020989,14]
[325395380,1714810827923,1052.5,0.00020989,14]
[325395381,1714810978375,150.0,0.000189,2]
[325395382,1714811004321,155.27155554,0.0001,2]
[325395383,1714811111242,260.57967193,9.999e-05,2]
[325395386,1714811242807,154.7215013,9.999e-05,2]
[325395387,1714811300155,241.90223269,0.0002,2]
[325395388,1714811337767,464.92090517,9.999e-05,2]
[325395389,1714811409329,739.8,0.00020964,14]
[325395390,1714811428259,964.8,0.00020964,14]
[325395407,1714811432283,-260.57967193,0.00020465,2]
[325395408,1714811432292,-154.7215013,0.00020466,2]
[325395409,1714811432301,-2739.61371003,0.00020466,2]
[325395410,1714811432313,-2725.12761974,0.00020466,2]
[325395411,1714811432323,-5814.10771169,0.00020467,2]
[325395412,1714811432333,-464.92090517,0.00020469,2]
[325395413,1714811432342,-464.92090517,0.00020469,2]
[325395414,1714811432352,-464.92090517,0.00020469,2]
[325395415,1714811432361,-450.52777595,0.00020797,2]
[325395416,1714811432370,-990.89702146,0.00020798,2]
[325395417,1714811432380,-154.93716643,0.00020799,2]
[325395418,1714811432390,-154.93716643,0.00020824,2]
[325395419,1714811432400,-154.93716643,0.0002085,2]
[325395420,1714811432410,-154.93716643,0.00020875,2]
[325395421,1714811432418,-30819.59741028,0.00020875,3]
[325395433,1714811437845,527.23402412,9.999e-05,2]
[325395444,1714811440082,-369.98977836,0.00020875,3]
[325395449,1714811443903,154.7215013,9.999e-05,2]
[325395469,1714811461321,409.52572391,9.999e-05,2]
[325395470,1714811489518,552.79125487,0.0002,2]
[325395471,1714811489545,136773.37453217,0.0002,2]
[325395479,1714811577669,30827.27470341,0.000211,6]
[325395480,1714811582422,154.7215013,9.999e-05,2]
[325395482,1714811593305,521.12221189,0.0002,2]
[325395483,1714811595881,30000.0,0.0002092,7]
[325395499,1714811675760,681.9979999,0.00019854,2]
[325395500,1714811707328,4926.0,0.000194,2]
[325395501,1714812235398,464.92090517,9.999e-05,2]
[325395502,1714812353654,841.34931339,9.999e-05,2]
[325395504,1714812403963,260.57967193,9.999e-05,2]
[325395571,1714812640390,-260.57967193,0.00020496,2]
[325395572,1714812640400,-162.7725956,0.00020543,2]
[325395573,1714812640409,-474.64349233,0.00020725,2]
[325395574,1714812640418,-373.7,0.00020815,3]
[325395575,1714812640427,-6982.25813943,0.0002082,2]
[325395576,1714812640438,-614.34113001,0.0002082,3]
[325395577,1714812640449,-1000.0022972,0.0002082,3]
[325395578,1714812640477,-256.99799994,0.0002082,3]
[325395594,1714812643312,-425.0,0.00020542,2]
[325395615,1714812688875,273.10152157,0.000165,2]
[325395616,1714812689229,165.9141139,0.00019777,2]
[325395621,1714812788643,816.25139438,9.999e-05,2]
[325395622,1714812834338,304.66044483,9.999e-05,2]
[325395624,1714812862349,304.66044483,9.999e-05,2]
[325395625,1714812869320,2000.0,0.0002,2]
[325395626,1714812882348,304.66044483,0.0002,2]
[325395627,1714812896346,304.66044483,0.0002,2]
[325395628,1714812914357,304.66044483,0.0002,2]
[325395629,1714812934098,304.66044483,0.0002,2]
[325395630,1714812960096,304.66044483,0.0002,2]
[325395631,1714812982099,304.66044483,0.0002,2]
[325395645,1714813004115,372.71109838,0.0002,2]
[325395646,1714813039483,7237.43807302,0.0002,2]
[325395647,1714813057438,4680.42042368,0.0002,2]
[325395649,1714813100524,464.92090517,9.999e-05,2]
[325395650,1714813556117,260.57967193,9.999e-05,2]
[325395651,1714813559206,816.25139438,9.999e-05,2]
[325395652,1714813687133,45194.064,0.00024748,30]
[325395653,1714813728733,3015.12347812,9.999e-05,2]
[325395828,1714813847512,-464.92090517,0.00020703,2]
[325395829,1714813847523,-464.92090517,0.00020703,2]
[325395830,1714813847533,-464.92090517,0.00020703,2]
[325395831,1714813847542,-990.89702146,0.00020704,2]
[325395832,1714813847552,-26525.35092874,0.00020773,2]
[325395843,1714814239158,8119.4522117,0.00019769,2]
[325395844,1714814584212,160.0,0.0002,2]
[325395845,1714814641792,464.92090517,9.999e-05,2]
[325395846,1714814646288,464.92090517,9.999e-05,2]
[325395847,1714814824922,-415.31305578,0.00020609,2]
[325395848,1714814824947,-2000.0,0.00020674,2]
[325395849,1714814824971,-250.11336285,0.00020708,2]
[325395850,1714814824995,-20386.57358137,0.00020709,2]
[325395851,1714814880490,709.62150588,9.999e-05,2]
[325395852,1714814889297,1679.27061659,0.00015,2]
[325395853,1714814898395,583.90234602,9.999e-05,2]
[325395854,1714814924465,154.7215013,9.999e-05,2]
[325395855,1714814928721,379.70928376,9.999e-05,2]
[325395856,1714814928756,208.24287966,9.999e-05,2]
[325395857,1714814930135,1492.83993752,9.999e-05,2]
[325395858,1714814932735,154.7215013,9.999e-05,2]
[325395859,1714814933960,891.44988474,9.999e-05,2]
[325395860,1714814935318,186.45353007,9.999e-05,2]
[325395861,1714814942852,527.23402412,9.999e-05,2]
[325395862,1714814954976,154.7215013,9.999e-05,2]
[325395863,1714814988451,2000.0,0.0002,2]
[325395864,1714815000140,2000.0,0.0002,2]
[325395866,1714815009889,620.0698296,0.00019827,2]
[325395867,1714815030135,409.52572391,9.999e-05,2]
[325395877,1714815037315,2000.0,0.0002,2]
[325395932,1714815042311,-990.89702146,0.000205,2]
[325395933,1714815042320,-154.7215013,0.00020705,2]
[325395934,1714815042330,-5712.33355174,0.00020707,2]
[325395935,1714815042342,-2670.62868236,0.00020707,2]
[325395936,1714815042351,-1203.54975148,0.00020708,2]
[325395937,1714815042361,-351.50129672,0.00020708,2]
[325395938,1714815042371,-240.0861284,0.00020708,2]
[325395939,1714815042380,-155.01450888,0.00020708,2]
[325395940,1714815042389,-550.23690907,0.00020708,2]
[325395941,1714815042399,-155.31761192,0.00020708,2]
[325395942,1714815042408,-284.84730443,0.00020708,2]
[325395943,1714815042418,-191.43164787,0.00020708,2]
[325395944,1714815042427,-208.6513947,0.00020708,2]
[325395945,1714815042436,-186.19877629,0.00020708,2]
[325395946,1714815042446,-573.50114291,0.00020708,2]
[325395947,1714815042456,-525.85026854,0.00020708,2]
[325395948,1714815042465,-208.89971363,0.00020708,2]
[325395949,1714815042475,-476.16164115,0.00020708,2]
[325395950,1714815042484,-8211.24098121,0.0002071,2]